fUSD/lending_fUSD_20250309
["ID","MTS","AMOUNT","RATE_DAILY","PERIOD"]
[355703960,1741482642105,-500.0,9.999e-05,2]
[355703961,1741482642114,-500.0,9.999e-05,2]
[355703962,1741482642123,-500.0,9.999e-05,2]
[355703963,1741482642132,-500.0,9.999e-05,2]
[355703964,1741482642141,-500.0,9.999e-05,2]
[355703965,1741482642151,-500.0,9.999e-05,2]
[355703966,1741482642160,-1295.11,9.999e-05,2]
[355703967,1741482642169,-500.0,9.999e-05,2]
[355703968,1741482642179,-500.0,9.999e-05,2]
[355703969,1741482642188,-167.00577632,9.999e-05,2]
[355703970,1741482642197,-500.0,9.999e-05,2]
[355703971,1741482642207,-1083.83,9.999e-05,2]
[355703972,1741482642216,-500.0,9.999e-05,2]
[355703973,1741482642225,-500.0,9.999e-05,2]
[355703974,1741482642235,-2258.43,9.999e-05,2]
[355703975,1741482642244,-500.0,9.999e-05,2]
[355703976,1741482642253,-500.0,9.999e-05,2]
[355703977,1741482642262,-500.0,9.999e-05,2]
[355703978,1741482642271,-534.75,9.999e-05,2]
[355703979,1741482642280,-500.0,9.999e-05,2]
[355703980,1741482642290,-500.0,9.999e-05,2]
[355703981,1741482642299,-500.0,9.999e-05,2]
[355703982,1741482642308,-500.0,9.999e-05,2]
[355703983,1741482642317,-500.0,9.999e-05,2]
[355703984,1741482642326,-500.0,9.999e-05,2]
[355703985,1741482642335,-1025.9,9.999e-05,2]
[355703986,1741482642344,-500.0,9.999e-05,2]
[355703987,1741482642354,-1126.88,9.999e-05,2]
[355703988,1741482642367,-523.72,9.999e-05,2]
[355703989,1741482642376,-514.24684246,9.999e-05,2]
[355703990,1741482642385,-500.0,9.999e-05,2]
[355703991,1741482642395,-500.0,9.999e-05,2]
[355703992,1741482642404,-500.0,9.999e-05,2]
[355703993,1741482642414,-500.0,9.999e-05,2]
[355703994,1741482642423,-500.0,9.999e-05,2]
[355703995,1741482642433,-715.68,9.999e-05,2]
[355703996,1741482642443,-500.0,9.999e-05,2]
[355703997,1741482642453,-647.81,9.999e-05,2]
[355703998,1741482642463,-158.16,9.999e-05,2]
[355703999,1741482642472,-502.00624375,9.999e-05,2]
[355704000,1741482642482,-500.0,9.999e-05,2]
[355704001,1741482642491,-500.0,9.999e-05,2]
[355704002,1741482642501,-500.0,9.999e-05,2]
[355704003,1741482642511,-1717.77,9.999e-05,2]
[355704004,1741482642520,-500.0,9.999e-05,2]
[355704005,1741482642530,-500.0,9.999e-05,2]
[355704006,1741482642539,-783.33,9.999e-05,2]
[355704007,1741482642548,-500.0,9.999e-05,2]
[355704008,1741482642558,-500.0,9.999e-05,2]
[355704009,1741482642568,-500.0,9.999e-05,2]
[355704010,1741482642578,-2035.19,9.999e-05,2]
[355704011,1741482642587,-500.0,9.999e-05,2]
[355704012,1741482642596,-892.22,9.999e-05,2]
[355704013,1741482642606,-500.0,9.999e-05,2]
[355704014,1741482642615,-500.0,9.999e-05,2]
[355704015,1741482642625,-500.0,9.999e-05,2]
[355704016,1741482642634,-500.0,9.999e-05,2]
[355704017,1741482642644,-500.0,9.999e-05,2]
[355704018,1741482642654,-1705.45,9.999e-05,2]
[355704019,1741482642664,-500.0,9.999e-05,2]
[355704020,1741482642673,-674.12,9.999e-05,2]
[355704021,1741482642683,-500.0,9.999e-05,2]
[355704022,1741482642692,-500.0,9.999e-05,2]
[355704023,1741482642702,-505.05,9.999e-05,2]
[355704024,1741482642711,-1807.92,9.999e-05,2]
[355704025,1741482642720,-500.0,9.999e-05,2]
[355704026,1741482642730,-500.0,9.999e-05,2]
[355704027,1741482642739,-500.0,9.999e-05,2]
[355704028,1741482642749,-3223.01,9.999e-05,2]
[355704029,1741482642759,-500.0,9.999e-05,2]
[355704030,1741482642768,-8377.08,9.999e-05,2]
[355704031,1741482642778,-500.0,9.999e-05,2]
[355704032,1741482642788,-500.0,9.999e-05,2]
[355704033,1741482642798,-500.0,9.999e-05,2]
[355704034,1741482642807,-500.0,9.999e-05,2]
[355704035,1741482642817,-924.82,9.999e-05,2]
[355704036,1741482642826,-500.0,9.999e-05,2]
[355704037,1741482642836,-500.0,9.999e-05,2]
[355704038,1741482642845,-500.0,9.999e-05,2]
[355704039,1741482642854,-500.0,9.999e-05,2]
[355704040,1741482642863,-500.0,9.999e-05,2]
[355704041,1741482642873,-500.0,9.999e-05,2]
[355704042,1741482642882,-500.0,9.999e-05,2]
[355704043,1741482642891,-489.81620759,9.999e-05,2]
[355704044,1741482642900,-500.0,9.999e-05,2]
[355704045,1741482642909,-545.51,9.999e-05,2]
[355704046,1741482642919,-500.0,9.999e-05,2]
[355704048,1741482642928,-500.0,9.999e-05,2]
[355704050,1741482642939,-500.0,9.999e-05,2]
[355704052,1741482642955,-675.05,9.999e-05,2]
[355704053,1741482642965,-1012.24,9.999e-05,2]
[355704054,1741482642975,-500.0,9.999e-05,2]
[355704055,1741482642986,-500.0,9.999e-05,2]
[355704057,1741482642995,-500.0,9.999e-05,2]
[355704058,1741482643005,-500.0,9.999e-05,2]
[355704059,1741482643016,-500.0,9.999e-05,2]
[355704060,1741482643026,-500.0,9.999e-05,2]
[355704061,1741482643036,-577.07447007,9.999e-05,2]
[355704062,1741482643046,-6243.16,9.999e-05,2]
[355704063,1741482643055,-823.94,9.999e-05,2]
[355704064,1741482643064,-500.0,9.999e-05,2]
[355704065,1741482643074,-500.0,9.999e-05,2]
[355704066,1741482643083,-500.0,9.999e-05,2]
[355704067,1741482643093,-660.09,9.999e-05,2]
[355704068,1741482643103,-500.0,9.999e-05,2]
[355704069,1741482643113,-500.0,9.999e-05,2]
[355704071,1741482643122,-500.0,9.999e-05,2]
[355704072,1741482643131,-500.0,9.999e-05,2]
[355704073,1741482643141,-500.0,9.999e-05,2]
[355704074,1741482643150,-500.0,9.999e-05,2]
[355704076,1741482643160,-500.0,9.999e-05,2]
[355704077,1741482643169,-500.0,9.999e-05,2]
[355704078,1741482643179,-500.0,9.999e-05,2]
[355704079,1741482643189,-437.12,9.999e-05,2]
[355704080,1741482643199,-500.0,9.999e-05,2]
[355704082,1741482643208,-500.0,9.999e-05,2]
[355704084,1741482643217,-500.0,9.999e-05,2]
[355704086,1741482643227,-634.07,9.999e-05,2]
[355704088,1741482643236,-500.0,9.999e-05,2]
[355704089,1741482643245,-500.0,9.999e-05,2]
[355704090,1741482643254,-500.0,9.999e-05,2]
[355704091,1741482643264,-500.0,9.999e-05,2]
[355704092,1741482643273,-1910.13,9.999e-05,2]
[355704093,1741482643283,-500.0,9.999e-05,2]
[355704094,1741482643292,-500.0,9.999e-05,2]
[355704095,1741482643302,-500.0,9.999e-05,2]
[355704096,1741482643311,-859.0913945,9.999e-05,2]
[355704097,1741482643344,-13.0886055,9.999e-05,2]
[355704098,1741482643353,-391.3154145,9.999e-05,2]
[355704099,1741482643371,-108.6845855,9.999e-05,2]
[355704100,1741482643381,-500.0,9.999e-05,2]
[355704101,1741482643390,-500.0,9.999e-05,2]
[355704102,1741482643400,-500.0,9.999e-05,2]
[355704103,1741482643409,-500.0,9.999e-05,2]
[355704104,1741482643419,-500.0,9.999e-05,2]
[355704105,1741482643428,-500.0,9.999e-05,2]
[355704106,1741482643438,-500.0,9.999e-05,2]
[355704107,1741482643447,-1000.0,9.999e-05,2]
[355704108,1741482643457,-500.0,9.999e-05,2]
[355704109,1741482643466,-355.90754729,9.999e-05,2]
[355704114,1741482643755,-144.09245271,9.999e-05,2]
[355704115,1741482643764,-202.81525255,9.999e-05,2]
[355704116,1741482643776,-1274.08474745,9.999e-05,2]
[355704117,1741482643786,-500.0,9.999e-05,2]
[355704118,1741482643795,-500.0,9.999e-05,2]
[355704119,1741482643804,-1762.85,9.999e-05,2]
[355704120,1741482643814,-500.0,9.999e-05,2]
[355704121,1741482643823,-500.0,9.999e-05,2]
[355704122,1741482643833,-500.0,9.999e-05,2]
[355704123,1741482643843,-200.0,9.999e-05,2]
[355704124,1741482643852,-500.0,9.999e-05,2]
[355704125,1741482643861,-500.0,9.999e-05,2]
[355704126,1741482643871,-504.29708297,9.999e-05,2]
[355704127,1741482643880,-297.2751068,9.999e-05,2]
[355704128,1741482643889,-442.24665976,9.999e-05,2]
[355704129,1741482644224,-258.69735,9.999e-05,2]
[355704130,1741482644236,-126.60599024,9.999e-05,2]
[355704131,1741482644245,-500.0,9.999e-05,2]
[355704132,1741482644254,-1088.24,9.999e-05,2]
[355704133,1741482644264,-250.55400976,9.999e-05,2]
[355704134,1741482644295,-249.44599024,9.999e-05,2]
[355704135,1741482644304,-500.0,9.999e-05,2]
[355704136,1741482644314,-500.0,9.999e-05,2]
[355704137,1741482644323,-500.0,9.999e-05,2]
[355704138,1741482644331,-502.1493712,9.999e-05,2]
[355704139,1741482644340,-500.0,9.999e-05,2]
[355704140,1741482644349,-500.0,9.999e-05,2]
[355704141,1741482644359,-500.0,9.999e-05,2]
[355704142,1741482644369,-500.0,9.999e-05,2]
[355704143,1741482644379,-212.83445957,9.999e-05,2]
[355704144,1741482644389,-551.89795379,9.999e-05,2]
[355704145,1741482644398,-521.64184544,9.999e-05,2]
[355704146,1741482644407,-412.6403564,9.999e-05,2]
[355704147,1741482644416,-500.0,9.999e-05,2]
[355704148,1741482644425,-522.82375892,9.999e-05,2]
[355704149,1741482644434,-500.0,9.999e-05,2]
[355704150,1741482644445,-420.701919,9.999e-05,2]
[355704151,1741482644454,-516.68191871,9.999e-05,2]
[355704152,1741482644464,-500.0,9.999e-05,2]
[355704153,1741482644473,-269.11414828,9.999e-05,2]
[355704154,1741482644492,-230.88585172,9.999e-05,2]
[355704155,1741482644501,-500.0,9.999e-05,2]
[355704156,1741482644511,-169.50629739,9.999e-05,2]
[355704162,1741482646215,-262.8916018,9.999e-05,2]
[355704163,1741482646354,-313.06330969,9.998e-05,2]
[355704164,1741482646365,-186.93669031,9.998e-05,2]
[355704165,1741482646375,-67.60210081,9.999e-05,2]
[355704166,1741482646384,-500.0,9.999e-05,2]
[355704167,1741482646393,-500.0,9.999e-05,2]
[355704168,1741482646403,-500.0,9.999e-05,2]
[355704169,1741482646412,-500.0,9.999e-05,2]
[355704170,1741482646422,-500.0,9.999e-05,2]
[355704171,1741482646431,-500.0,9.999e-05,2]
[355704172,1741482646440,-500.0,9.999e-05,2]
[355704173,1741482646452,-500.0,9.999e-05,2]
[355704174,1741482646461,-522.76091606,9.999e-05,2]
[355704175,1741482646470,-500.0,9.999e-05,2]
[355704177,1741482646479,-300.0,9.999e-05,2]
[355704179,1741482646489,-1391.0,0.0001,2]
[355704181,1741482646498,-722.01345021,0.0001,2]
[355704183,1741482646507,-4911.18684271,0.0001,2]
[355704185,1741482646523,-206766.10440004,0.0001,2]
[355704192,1741482648998,-26537.00190756,0.0001,2]
[355704193,1741482651520,-496.302152,0.0001,2]
[355704194,1741482651531,-348.95445286,0.0001,2]
[355704195,1741482651543,-4303.45232,0.0001,2]
[355704201,1741482903709,155.0,0.00028,120]
[355704203,1741483532132,712.5,0.00028,120]
[355704204,1741483536365,3278.5065948,8e-05,2]
[355704247,1741483771759,2000.0,0.00028,120]
[355704261,1741483832354,-1272.74479316,8.19e-05,2]
[355704266,1741483832440,-3342.09999,8.19e-05,2]
[355704267,1741483832452,-3005.02503987,8.19e-05,2]
[355704268,1741483832464,-721.64177466,8.19e-05,2]
[355704269,1741483832476,-26576.21669087,8.19e-05,2]
[355704270,1741483832485,-1472.47539858,8.219e-05,2]
[355704271,1741483832495,-1875.59,8.219e-05,2]
[355704272,1741483832505,-1500.0,8.573e-05,2]
[355704273,1741483832515,-2000.0,8.585e-05,2]
[355704274,1741483832524,-1000.0,8.68e-05,2]
[355704275,1741483832534,-451.02,8.773e-05,2]
[355704276,1741483832543,-892.43,8.879e-05,2]
[355704277,1741483832553,-1396.23,8.904e-05,2]
[355704278,1741483832563,-150.0,8.921e-05,2]
[355704279,1741483832573,-250.0,8.922e-05,2]
[355704280,1741483832582,-150.99,8.922e-05,2]
[355704281,1741483832592,-3015.66,8.922e-05,2]
[355704282,1741483832601,-923.78,8.922e-05,2]
[355704283,1741483832611,-499.99,8.922e-05,2]
[355704284,1741483832620,-400.19636571,8.922e-05,2]
[355704285,1741483832631,-473.33872835,8.922e-05,2]
[355704286,1741483832643,-814.56490594,8.922e-05,2]
[355704287,1741483832652,-999.99,8.922e-05,2]
[355704288,1741483832662,-2672.51,8.922e-05,2]
[355704289,1741483832672,-816.12,8.999e-05,2]
[355704290,1741483832681,-2260.91783264,9e-05,2]
[355704291,1741483832943,-5818.33061614,9e-05,2]
[355704292,1741483832954,-200.0,9.023e-05,2]
[355704293,1741483832964,-178.49,9.053e-05,2]
[355704294,1741483832974,-285.06,9.073e-05,2]
[355704295,1741483832984,-615.41,9.095e-05,2]
[355704296,1741483832993,-164.9,9.11e-05,2]
[355704297,1741483833003,-309.59,9.182e-05,2]
[355704298,1741483833013,-164.9,9.383e-05,2]
[355704299,1741483833023,-150.0,9.487e-05,2]
[355704300,1741483833032,-981.994557,9.5e-05,2]
[355704301,1741483833044,-207.54107034,9.5e-05,2]
[355704302,1741483833054,-150.0,9.562e-05,7]
[355704303,1741483833063,-134.87400962,9.638e-05,2]
[355704304,1741483833075,-282.72282812,9.638e-05,2]
[355704305,1741483833100,-10.79385889,9.638e-05,2]
[355704306,1741483833109,-164.9,9.656e-05,2]
[355704307,1741483833119,-1000.0,9.765e-05,2]
[355704308,1741483833129,-47590.34662785,9.799e-05,2]
[355704309,1741483833138,-255.0,9.813e-05,2]
[355704310,1741483833148,-6510.57997314,9.828e-05,2]
[355704311,1741483833159,-1124.49855846,9.828e-05,2]
[355704312,1741483833171,-724.68,9.828e-05,2]
[355704318,1741483838383,-2071.23245785,9.828e-05,2]
[355704319,1741483838392,-1000.0,9.899e-05,2]
[355704320,1741483838402,-1674.68600925,9.899e-05,2]
[355704321,1741483838486,-851.17,9.899e-05,2]
[355704322,1741483838498,-242.89759075,9.899e-05,2]
[355704323,1741483838507,-608.95240925,9.899e-05,2]
[355704324,1741483838518,-278.35824588,9.899e-05,2]
[355704325,1741483838582,-775.06624487,9.899e-05,2]
[355704326,1741483838592,-176.2404,9.9e-05,2]
[355704327,1741483838602,-975.4475,9.9e-05,2]
[355704328,1741483838611,-216.53484633,9.9e-05,2]
[355704329,1741483838624,-418.78711426,9.9e-05,2]
[355704334,1741483838724,-174.04353941,9.9e-05,2]
[355704336,1741483838733,-487.25094192,9.9e-05,2]
[355704338,1741483838744,-727.21207237,9.9e-05,2]
[355704418,1741483840511,-8656.11338571,9.9e-05,2]
[355704419,1741483840520,-1855.861,9.938e-05,2]
[355704420,1741483840530,-175.659,9.938e-05,2]
[355704421,1741483840539,-786.0,9.99e-05,2]
[355704422,1741483840548,-907.0,9.99e-05,2]
[355704423,1741483840558,-1428.0,9.99e-05,2]
[355704424,1741483840567,-1270.0,9.99e-05,2]
[355704425,1741483840576,-541.0,9.99e-05,2]
[355704426,1741483840586,-4076.0,9.99e-05,2]
[355704427,1741483840596,-1204.904,9.99e-05,2]
[355704428,1741483840606,-3943.86,9.99e-05,2]
[355704429,1741483840615,-1281.155,9.99e-05,2]
[355704430,1741483840625,-2035.797,9.99e-05,2]
[355704431,1741483840635,-151.0,9.99e-05,2]
[355704432,1741483840644,-150.579,9.99e-05,2]
[355704433,1741483840654,-5339.82,9.99e-05,2]
[355704434,1741483840663,-1889.3622111,9.994e-05,2]
[355704435,1741483840674,-500.0,9.996e-05,2]
[355704436,1741483840683,-1629.91,9.996e-05,2]
[355704437,1741483840692,-1661.246855,9.996e-05,2]
[355704438,1741483840702,-523.97,9.996e-05,2]
[355704439,1741483840711,-500.0,9.996e-05,2]
[355704440,1741483840720,-559.51,9.996e-05,2]
[355704441,1741483840730,-2236.944332,9.996e-05,2]
[355704442,1741483840740,-1083.83,9.996e-05,2]
[355704443,1741483840750,-184.269335,9.996e-05,2]
[355704444,1741483840760,-481.93,9.996e-05,2]
[355704445,1741483840769,-166.529609,9.996e-05,2]
[355704446,1741483840779,-500.0,9.996e-05,2]
[355704447,1741483840789,-678.74,9.996e-05,2]
[355704448,1741483840799,-1126.88,9.996e-05,2]
[355704449,1741483840808,-623.64,9.996e-05,2]
[355704450,1741483840817,-715.68,9.996e-05,2]
[355704451,1741483840828,-1717.77,9.996e-05,2]
[355704452,1741483840837,-500.0,9.996e-05,2]
[355704453,1741483840847,-2035.19,9.996e-05,2]
[355704454,1741483840857,-500.0,9.996e-05,2]
[355704455,1741483840866,-535.29,9.996e-05,2]
[355704456,1741483840875,-674.12,9.996e-05,2]
[355704457,1741483840885,-500.0,9.996e-05,2]
[355704458,1741483840896,-500.0,9.996e-05,2]
[355704459,1741483840905,-3369.23,9.996e-05,2]
[355704460,1741483840914,-914.59,9.996e-05,2]
[355704461,1741483840923,-500.0,9.996e-05,2]
[355704462,1741483840933,-500.0,9.996e-05,2]
[355704463,1741483840943,-1155.27,9.996e-05,2]
[355704464,1741483840953,-698.48,9.996e-05,2]
[355704465,1741483840963,-873.54,9.996e-05,2]
[355704466,1741483840972,-500.0,9.996e-05,2]
[355704469,1741483840982,-500.57950472,9.996e-05,2]
[355704472,1741483840992,-500.0,9.996e-05,2]
[355704474,1741483841002,-501.20783394,9.996e-05,2]
[355704476,1741483841012,-500.0,9.996e-05,2]
[355704477,1741483841022,-500.0,9.996e-05,2]
[355704478,1741483841031,-1266.16,9.996e-05,2]
[355704479,1741483841041,-705.68,9.996e-05,2]
[355704480,1741483841051,-701.16,9.996e-05,2]
[355704481,1741483841061,-2145.24,9.996e-05,2]
[355704482,1741483841071,-500.0,9.996e-05,2]
[355704483,1741483841081,-881.33,9.996e-05,2]
[355704484,1741483841090,-507.55,9.996e-05,2]
[355704485,1741483841304,-949.71,9.996e-05,2]
[355704486,1741483841318,-861.32,9.996e-05,2]
[355704487,1741483841328,-948.07,9.996e-05,2]
[355704488,1741483841337,-516.33,9.996e-05,2]
[355704489,1741483841349,-500.0,9.996e-05,2]
[355704490,1741483841359,-500.0,9.996e-05,2]
[355704491,1741483841369,-500.0,9.996e-05,2]
[355704492,1741483841378,-500.0,9.996e-05,2]
[355704493,1741483841387,-500.0,9.996e-05,2]
[355704494,1741483841398,-500.0,9.996e-05,2]
[355704495,1741483841407,-3892.0,9.996e-05,2]
[355704496,1741483841416,-662.84,9.996e-05,2]
[355704497,1741483841426,-1120.52,9.996e-05,2]
[355704498,1741483841435,-500.0,9.996e-05,2]
[355704499,1741483841444,-1996.79,9.996e-05,2]
[355704500,1741483841454,-1497.58,9.996e-05,2]
[355704501,1741483841463,-500.0,9.996e-05,2]
[355704502,1741483841473,-500.0,9.996e-05,2]
[355704503,1741483841483,-500.0,9.996e-05,2]
[355704504,1741483841492,-500.0,9.996e-05,2]
[355704505,1741483841502,-2948.09,9.996e-05,2]
[355704506,1741483841512,-500.0,9.996e-05,2]
[355704507,1741483841522,-500.0,9.996e-05,2]
[355704508,1741483841533,-1776.49,9.996e-05,2]
[355704509,1741483841544,-500.0,9.996e-05,2]
[355704510,1741483841557,-500.0,9.996e-05,2]
[355704511,1741483841570,-511.21649286,9.996e-05,2]
[355704512,1741483841580,-716.01,9.996e-05,2]
[355704513,1741483841589,-560.57,9.996e-05,2]
[355704514,1741483841598,-500.0,9.996e-05,2]
[355704515,1741483841608,-500.0,9.996e-05,2]
[355704516,1741483841617,-500.0,9.996e-05,2]
[355704517,1741483841626,-500.0,9.996e-05,2]
[355704518,1741483841636,-500.0,9.996e-05,2]
[355704519,1741483841646,-500.0,9.996e-05,2]
[355704520,1741483841655,-832.86,9.996e-05,2]
[355704521,1741483841664,-500.0,9.996e-05,2]
[355704522,1741483841674,-500.0,9.996e-05,2]
[355704523,1741483841683,-500.0,9.996e-05,2]
[355704524,1741483841693,-500.0,9.996e-05,2]
[355704525,1741483841702,-500.0,9.996e-05,2]
[355704526,1741483841711,-500.0,9.996e-05,2]
[355704527,1741483841721,-500.0,9.996e-05,2]
[355704528,1741483841730,-755.75,9.996e-05,2]
[355704529,1741483841740,-972.2,9.996e-05,2]
[355704530,1741483841749,-500.0,9.996e-05,2]
[355704531,1741483841759,-508.2291242,9.996e-05,2]
[355704532,1741483841768,-590.48,9.996e-05,2]
[355704533,1741483841781,-502.95236408,9.996e-05,2]
[355704534,1741483841791,-500.0,9.996e-05,2]
[355704535,1741483841801,-715.15,9.996e-05,2]
[355704536,1741483841811,-512.49768272,9.996e-05,2]
[355704537,1741483841821,-500.0,9.996e-05,2]
[355704538,1741483841831,-507.27276496,9.996e-05,2]
[355704539,1741483841841,-500.0,9.996e-05,2]
[355704540,1741483841851,-575.93264124,9.996e-05,2]
[355704541,1741483841861,-500.0,9.996e-05,2]
[355704542,1741483841872,-500.0,9.996e-05,2]
[355704543,1741483841882,-500.0,9.996e-05,2]
[355704544,1741483841891,-500.0,9.996e-05,2]
[355704545,1741483841902,-500.0,9.996e-05,2]
[355704546,1741483841912,-577.61076017,9.996e-05,2]
[355704547,1741483841921,-152498.95188834,9.997e-05,2]
[355704548,1741483841934,-645.21453389,9.997e-05,2]
[355704549,1741483841946,-3797.95174274,9.997e-05,2]
[355704550,1741483841980,-336.329218,9.997e-05,2]
[355704551,1741483841995,-1041.21389623,9.997e-05,2]
[355704552,1741483842006,-2685.66968128,9.997e-05,2]
[355704553,1741483842018,-19852.75203512,9.997e-05,2]
[355704565,1741483843741,-506.93809428,9.996e-05,2]
[355704566,1741483843750,-333.86800953,9.997e-05,2]
[355704567,1741483843762,-493.09706335,9.997e-05,2]
[355704574,1741483845249,-6801.73095202,9.997e-05,2]
[355704597,1741483846530,-1741.169,9.699e-05,2]
[355704598,1741483846540,-5194.80215755,9.959e-05,2]
[355704599,1741483846550,-1014.336,9.99e-05,2]
[355704600,1741483846559,-558.73,9.996e-05,2]
[355704601,1741483846568,-514.34247742,9.996e-05,2]
[355704602,1741483846578,-773.11,9.996e-05,2]
[355704603,1741483846587,-377523.9700351,9.997e-05,2]
[355704604,1741483846598,-498.78176711,9.997e-05,2]
[355704605,1741483846758,-5600.07179211,9.997e-05,2]
[355704606,1741483846768,-280.84338572,9.997e-05,2]
[355704607,1741483846777,-36681.60302218,9.997e-05,2]
[355704608,1741483846788,-1662.75918961,9.997e-05,2]
[355704609,1741483846800,-4253.40592,9.997e-05,2]
[355704613,1741484006744,338.0,0.00028,120]
[355704618,1741484297897,166.03091,0.00028,120]
[355704620,1741484480934,-300.0,8.219e-05,2]
[355704624,1741484828522,280.57896363,0.00028,120]
[355704670,1741485031665,-1647.3,8.219e-05,2]
[355704671,1741485031675,-714.40584458,8.6e-05,2]
[355704672,1741485031686,-7960.91580602,8.6e-05,2]
[355704673,1741485031715,-1327.2816964,8.6e-05,2]
[355704674,1741485031724,-3047.99,8.663e-05,2]
[355704675,1741485031734,-279.34,8.663e-05,2]
[355704676,1741485031743,-2000.0,8.699e-05,2]
[355704677,1741485031752,-250.56,8.752e-05,2]
[355704678,1741485031761,-1000.0,8.788e-05,2]
[355704679,1741485031771,-487.78,8.829e-05,2]
[355704680,1741485031780,-150.0,8.932e-05,2]
[355704681,1741485031792,-250.0,8.938e-05,2]
[355704682,1741485031806,-1157.04,8.957e-05,2]
[355704683,1741485031815,-9999.99,8.957e-05,2]
[355704684,1741485031825,-200.0,8.973e-05,2]
[355704685,1741485031838,-150.0,9.003e-05,2]
[355704686,1741485031847,-23900.0,9.004e-05,2]
[355704687,1741485031856,-619.52,9.015e-05,2]
[355704688,1741485031865,-163.49,9.036e-05,2]
[355704689,1741485031875,-1090.35596933,9.1e-05,2]
[355704690,1741485031989,-614.72573488,9.1e-05,2]
[355704691,1741485032001,-147.33829579,9.1e-05,2]
[355704692,1741485032010,-170.75,9.315e-05,2]
[355704693,1741485032019,-95.78819327,9.473e-05,2]
[355704694,1741485032031,-54.21180673,9.473e-05,2]
[355704695,1741485032040,-150.0,9.562e-05,7]
[355704696,1741485032049,-1000.0,9.886e-05,2]
[355704697,1741485032059,-8656.1134,9.889e-05,2]
[355704698,1741485032068,-14104.2361,9.89e-05,2]
[355704700,1741485032078,-1000.0,9.894e-05,2]
[355704701,1741485032089,-730.5211,9.894e-05,2]
[355704703,1741485032098,-28370.6897,9.895e-05,2]
[355704705,1741485032108,-5000.0,9.896e-05,2]
[355704707,1741485032118,-500.0,9.896e-05,2]
[355704709,1741485032127,-943.5559,9.896e-05,2]
[355704711,1741485032136,-3017.7786,9.896e-05,2]
[355704713,1741485032146,-37158.2182,9.897e-05,2]
[355704715,1741485032155,-1017.2862,9.897e-05,2]
[355704717,1741485032165,-212.0,9.903e-05,2]
[355704720,1741485032175,-150.0,9.917e-05,2]
[355704723,1741485032184,-2238.682,9.938e-05,2]
[355704726,1741485032193,-171.109,9.938e-05,2]
[355704729,1741485032202,-163.49,9.939e-05,2]
[355704732,1741485032212,-160.24766173,9.973e-05,2]
[355704734,1741485032221,-1281.155,9.989e-05,2]
[355704737,1741485032230,-2035.797,9.989e-05,2]
[355704740,1741485032240,-1462.507,9.989e-05,2]
[355704743,1741485032249,-641.449,9.989e-05,2]
[355704745,1741485032258,-150.167,9.989e-05,2]
[355704784,1741485032481,-788.0,9.989e-05,2]
[355704786,1741485032491,-541.98,9.989e-05,2]
[355704788,1741485032500,-909.052,9.989e-05,2]
[355704790,1741485032509,-1272.843,9.989e-05,2]
[355704792,1741485032519,-1430.586,9.989e-05,2]
[355704794,1741485032528,-4076.0,9.989e-05,2]
[355704796,1741485032537,-150.0,9.989e-05,2]
[355704798,1741485032547,-171.0,9.989e-05,2]
[355704800,1741485032556,-3943.86,9.989e-05,2]
[355704802,1741485032565,-150.579,9.989e-05,2]
[355704804,1741485032574,-508.59,9.99e-05,2]
[355704806,1741485032583,-756.31,9.993e-05,2]
[355704808,1741485032593,-500.0,9.993e-05,2]
[355704810,1741485032602,-1311.62,9.993e-05,2]
[355704812,1741485032612,-500.0,9.993e-05,2]
[355704814,1741485032621,-500.0,9.993e-05,2]
[355704816,1741485032631,-1012.07,9.993e-05,2]
[355704818,1741485032640,-500.0,9.993e-05,2]
[355704820,1741485032650,-776.4,9.993e-05,2]
[355704822,1741485032659,-500.0,9.993e-05,2]
[355704823,1741485032668,-500.0,9.993e-05,2]
[355704825,1741485032677,-500.0,9.993e-05,2]
[355704827,1741485032686,-962.99,9.993e-05,2]
[355704829,1741485032695,-500.0,9.993e-05,2]
[355704831,1741485032705,-500.0,9.993e-05,2]
[355704833,1741485032714,-500.0,9.993e-05,2]
[355704834,1741485032723,-1450.5,9.993e-05,2]